[Event "Titled Tuesday Blitz October 31 Early 2023"]
[White "Ismagilov, Damir"]
[Black "IsaqueGoncalvesSanto"]
[WhiteFideId "34199982"]
[WhiteElo "2666"]
[BlackElo "1803"]
[Result "1-0"]
[Round "2"]
[TimeControl "180+1"]
[Date "2023.10.31"]
[WhiteClock "0:01:34"]
[BlackClock "0:00:26"]
[Board "93"]

1. g3 {[%clk 0:02:58]}  e6 {[%clk 0:03:00]} 2. Bg2 {[%clk 0:02:59]}  d5 {[%clk 0:03:00]} 3. d4 {[%clk 0:02:57]}  Nf6 {[%clk 0:03:00]} 4. c4 {[%clk 0:02:57]}  c6 {[%clk 0:03:00]} 5. Nc3 {[%clk 0:02:57]}  Bb4 {[%clk 0:02:59]} 6. cxd5 {[%clk 0:02:54]}  exd5 {[%clk 0:02:58]} 7. Nf3 {[%clk 0:02:53]}  Ne4 {[%clk 0:02:57]} 8. Bd2 {[%clk 0:02:51]}  Nxd2 {[%clk 0:02:57]} 9. Qxd2 {[%clk 0:02:52]}  O-O {[%clk 0:02:56]} 10. O-O {[%clk 0:02:52]}  Bf5 {[%clk 0:02:55]} 11. Ne5 {[%clk 0:02:49]}  Nd7 {[%clk 0:02:52]} 12. a3 {[%clk 0:02:45]}  Ba5 {[%clk 0:02:48]} 13. b4 {[%clk 0:02:44]}  Bb6 {[%clk 0:02:47]} 14. Nxd7 {[%clk 0:02:43]}  Qxd7 {[%clk 0:02:46]} 15. Na4 {[%clk 0:02:44]}  Bd8 {[%clk 0:02:28]} 16. Nc5 {[%clk 0:02:40]}  Qc8 {[%clk 0:02:26]} 17. Rac1 {[%clk 0:02:38]}  Bf6 {[%clk 0:02:25]} 18. b5 {[%clk 0:02:32]}  Rb8 {[%clk 0:01:34]} 19. e3 {[%clk 0:02:26]}  Bh3 {[%clk 0:01:30]} 20. bxc6 {[%clk 0:02:17]}  bxc6 {[%clk 0:01:28]} 21. Qa5 {[%clk 0:02:18]}  Bxg2 {[%clk 0:01:22]} 22. Kxg2 {[%clk 0:02:18]}  h5 {[%clk 0:01:11]} 23. h4 {[%clk 0:02:17]}  Qg4 {[%clk 0:01:09]} 24. Qxa7 {[%clk 0:02:14]}  Bxh4 {[%clk 0:01:07]} 25. Qd7 {[%clk 0:02:14]}  Qg6 {[%clk 0:01:04]} 26. Rh1 {[%clk 0:01:58]}  Rfd8 {[%clk 0:01:02]} 27. Qh3 {[%clk 0:01:55]}  Be7 {[%clk 0:01:01]} 28. Qxh5 {[%clk 0:01:55]}  Qxh5 {[%clk 0:00:48]} 29. Rxh5 {[%clk 0:01:56]}  Ra8 {[%clk 0:00:48]} 30. a4 {[%clk 0:01:55]}  Rdb8 {[%clk 0:00:42]} 31. Rch1 {[%clk 0:01:51]}  g6 {[%clk 0:00:42]} 32. Rh8+ {[%clk 0:01:50]}  Kg7 {[%clk 0:00:42]} 33. R1h7+ {[%clk 0:01:50]}  Kf6 {[%clk 0:00:41]} 34. Nd7+ {[%clk 0:01:51]}  Ke6 {[%clk 0:00:38]} 35. Nxb8 {[%clk 0:01:51]}  Rxa4 {[%clk 0:00:38]} 36. Nxc6 {[%clk 0:01:51]}  Bf6 {[%clk 0:00:34]} 37. Rb8 {[%clk 0:01:46]}  Ra2 {[%clk 0:00:32]} 38. Rb7 {[%clk 0:01:39]}  Kd6 {[%clk 0:00:29]} 39. Rbxf7 {[%clk 0:01:37]}  Bg5 {[%clk 0:00:27]} 40. Ne5 {[%clk 0:01:35]}  Bxe3 {[%clk 0:00:26]} 41. Rf6# {[%clk 0:01:34]} 1-0


[Site "https://www.chess.com"]

[Event "Titled Tuesday Blitz October 31 Early 2023"]
[White "Paravyan, David"]
[Black "Samarth J Rao"]
[WhiteFideId "4194985"]
[BlackFideId "46652370"]
[WhiteElo "3086"]
[BlackElo "2099"]
[Result "1-0"]
[Round "2"]
[TimeControl "180+1"]
[Date "2023.10.31"]
[WhiteClock "0:01:17"]
[BlackClock "0:00:00"]
[Board "94"]

1. e4 {[%clk 0:02:59]}  c6 {[%clk 0:02:59]} 2. Ne2 {[%clk 0:02:59]}  d5 {[%clk 0:02:59]} 3. Nbc3 {[%clk 0:02:59]}  e5 {[%clk 0:02:59]} 4. d4 {[%clk 0:02:58]}  exd4 {[%clk 0:02:53]} 5. Qxd4 {[%clk 0:02:58]}  Nf6 {[%clk 0:02:48]} 6. Bg5 {[%clk 0:02:57]}  Be7 {[%clk 0:02:37]} 7. exd5 {[%clk 0:02:55]}  cxd5 {[%clk 0:02:30]} 8. O-O-O {[%clk 0:02:36]}  Nc6 {[%clk 0:02:10]} 9. Qd2 {[%clk 0:02:27]}  O-O {[%clk 0:01:22]} 10. Bxf6 {[%clk 0:02:26]}  Bxf6 {[%clk 0:01:13]} 11. Nxd5 {[%clk 0:02:27]}  Be6 {[%clk 0:01:05]} 12. Nxf6+ {[%clk 0:02:26]}  Qxf6 {[%clk 0:01:04]} 13. Qf4 {[%clk 0:02:27]}  Qg6 {[%clk 0:00:49]} 14. Ng3 {[%clk 0:02:19]}  Rac8 {[%clk 0:00:16]} 15. Bd3 {[%clk 0:02:17]}  f5 {[%clk 0:00:16]} 16. Rhe1 {[%clk 0:02:15]}  Kh8 {[%clk 0:00:15]} 17. Kb1 {[%clk 0:02:14]}  a5 {[%clk 0:00:15]} 18. a3 {[%clk 0:02:13]}  Qf6 {[%clk 0:00:15]} 19. Nh5 {[%clk 0:02:04]}  Qf7 {[%clk 0:00:15]} 20. Qg5 {[%clk 0:02:03]}  Nd4 {[%clk 0:00:12]} 21. Nf4 {[%clk 0:01:57]}  Ba2+ {[%clk 0:00:12]} 22. Ka1 {[%clk 0:01:58]}  Rxc2 {[%clk 0:00:12]} 23. Re7 {[%clk 0:01:31]}  Qg8 {[%clk 0:00:03]} 24. Ng6+ {[%clk 0:01:16]}  hxg6 {[%clk 0:00:03]} 25. Qh4+ {[%clk 0:01:17]}  Qh7 {[%clk 0:00:04]} 26. Qxd4 {[%clk 0:01:18]}  Rcc8 {[%clk 0:00:00]} 27. Kxa2 {[%clk 0:01:17]} 1-0


[Site "https://www.chess.com"]

[Event "Titled Tuesday Blitz October 31 Early 2023"]
[White "Caruana, Fabiano"]
[Black "TimGrutter03"]
[WhiteFideId "2020009"]
[WhiteElo "3071"]
[BlackElo "2531"]
[Result "1-0"]
[Round "2"]
[TimeControl "180+1"]
[Date "2023.10.31"]
[WhiteClock "0:02:00"]
[BlackClock "0:00:02"]
[Board "95"]

1. b3 {[%clk 0:03:00]}  g6 {[%clk 0:02:58]} 2. Bb2 {[%clk 0:03:00]}  Nf6 {[%clk 0:02:58]} 3. Nf3 {[%clk 0:02:59]}  Bg7 {[%clk 0:02:58]} 4. g3 {[%clk 0:03:00]}  O-O {[%clk 0:02:59]} 5. Bg2 {[%clk 0:03:01]}  b6 {[%clk 0:02:58]} 6. O-O {[%clk 0:03:01]}  Bb7 {[%clk 0:02:58]} 7. c4 {[%clk 0:03:02]}  d6 {[%clk 0:02:58]} 8. Nc3 {[%clk 0:03:01]}  e5 {[%clk 0:02:57]} 9. d4 {[%clk 0:03:01]}  exd4 {[%clk 0:02:54]} 10. Nxd4 {[%clk 0:03:02]}  Bxg2 {[%clk 0:02:54]} 11. Kxg2 {[%clk 0:03:03]}  d5 {[%clk 0:02:54]} 12. e3 {[%clk 0:03:01]}  dxc4 {[%clk 0:02:46]} 13. bxc4 {[%clk 0:03:02]}  c5 {[%clk 0:02:46]} 14. Ndb5 {[%clk 0:02:59]}  Nc6 {[%clk 0:02:40]} 15. Qe2 {[%clk 0:02:56]}  a6 {[%clk 0:02:35]} 16. Rad1 {[%clk 0:02:54]}  Qe7 {[%clk 0:02:35]} 17. Na3 {[%clk 0:02:54]}  Nb4 {[%clk 0:02:31]} 18. Nab1 {[%clk 0:02:45]}  Rfd8 {[%clk 0:02:08]} 19. a3 {[%clk 0:02:43]}  Qb7+ {[%clk 0:02:07]} 20. e4 {[%clk 0:02:38]}  Nc6 {[%clk 0:02:02]} 21. Nd5 {[%clk 0:02:38]}  Nxd5 {[%clk 0:01:56]} 22. cxd5 {[%clk 0:02:38]}  Nd4 {[%clk 0:01:54]} 23. Bxd4 {[%clk 0:02:38]}  cxd4 {[%clk 0:01:52]} 24. Nd2 {[%clk 0:02:37]}  Re8 {[%clk 0:01:44]} 25. Rfe1 {[%clk 0:02:23]}  f5 {[%clk 0:01:34]} 26. f3 {[%clk 0:02:21]}  Rac8 {[%clk 0:01:23]} 27. Nb3 {[%clk 0:02:20]}  Qe7 {[%clk 0:00:56]} 28. Nxd4 {[%clk 0:02:14]}  Bxd4 {[%clk 0:00:55]} 29. Rxd4 {[%clk 0:02:15]}  Qxa3 {[%clk 0:00:55]} 30. e5 {[%clk 0:02:13]}  Qc5 {[%clk 0:00:42]} 31. Red1 {[%clk 0:02:10]}  Rcd8 {[%clk 0:00:33]} 32. f4 {[%clk 0:02:10]}  a5 {[%clk 0:00:31]} 33. d6 {[%clk 0:02:10]}  Qc6+ {[%clk 0:00:27]} 34. Qf3 {[%clk 0:02:07]}  Qxf3+ {[%clk 0:00:23]} 35. Kxf3 {[%clk 0:02:08]}  Kf7 {[%clk 0:00:17]} 36. Rb1 {[%clk 0:02:04]}  Rb8 {[%clk 0:00:15]} 37. Rc4 {[%clk 0:02:04]}  Ke6 {[%clk 0:00:14]} 38. Rb5 {[%clk 0:02:02]}  Rec8 {[%clk 0:00:10]} 39. Rxc8 {[%clk 0:02:02]}  Rxc8 {[%clk 0:00:11]} 40. Rxb6 {[%clk 0:02:02]}  Rc3+ {[%clk 0:00:12]} 41. Ke2 {[%clk 0:01:58]}  Rc2+ {[%clk 0:00:10]} 42. Ke3 {[%clk 0:01:58]}  Rxh2 {[%clk 0:00:07]} 43. Rb7 {[%clk 0:01:58]}  Rh1 {[%clk 0:00:05]} 44. Re7+ {[%clk 0:01:59]}  Kd5 {[%clk 0:00:02]} 45. d7 {[%clk 0:02:00]} 1-0


[Site "https://www.chess.com"]

[Event "Titled Tuesday Blitz October 31 Early 2023"]
[White "Bok, Benjamin"]
[Black "Nilsen, Tobias Lang"]
[WhiteFideId "1017063"]
[BlackFideId "1521624"]
[WhiteElo "2966"]
[BlackElo "2525"]
[Result "1-0"]
[Round "2"]
[TimeControl "180+1"]
[Date "2023.10.31"]
[WhiteClock "0:00:16"]
[BlackClock "0:00:17"]
[Board "96"]

1. d4 {[%clk 0:03:00]}  d5 {[%clk 0:02:59]} 2. c4 {[%clk 0:03:00]}  e6 {[%clk 0:02:59]} 3. Nc3 {[%clk 0:03:00]}  c6 {[%clk 0:03:00]} 4. e3 {[%clk 0:03:00]}  Nf6 {[%clk 0:02:59]} 5. Nf3 {[%clk 0:03:00]}  a6 {[%clk 0:02:59]} 6. b3 {[%clk 0:02:59]}  b5 {[%clk 0:02:59]} 7. Bd3 {[%clk 0:02:54]}  Bd6 {[%clk 0:02:58]} 8. O-O {[%clk 0:02:53]}  O-O {[%clk 0:02:58]} 9. e4 {[%clk 0:02:52]}  dxe4 {[%clk 0:02:58]} 10. Nxe4 {[%clk 0:02:53]}  Nxe4 {[%clk 0:02:56]} 11. Bxe4 {[%clk 0:02:54]}  Bb7 {[%clk 0:02:46]} 12. Qc2 {[%clk 0:02:06]}  h6 {[%clk 0:02:45]} 13. Ne5 {[%clk 0:02:00]}  bxc4 {[%clk 0:02:42]} 14. bxc4 {[%clk 0:01:58]}  Nd7 {[%clk 0:02:40]} 15. Rb1 {[%clk 0:01:54]}  Qc7 {[%clk 0:02:35]} 16. Nxd7 {[%clk 0:01:39]}  Qxd7 {[%clk 0:02:34]} 17. c5 {[%clk 0:01:40]}  Be7 {[%clk 0:02:32]} 18. Qb2 {[%clk 0:01:32]}  Bc8 {[%clk 0:02:26]} 19. Be3 {[%clk 0:01:25]}  f5 {[%clk 0:02:18]} 20. Bf3 {[%clk 0:01:21]}  f4 {[%clk 0:02:10]} 21. Bd2 {[%clk 0:01:20]}  Bf6 {[%clk 0:02:10]} 22. Bc3 {[%clk 0:01:17]}  Ra7 {[%clk 0:01:58]} 23. Qb6 {[%clk 0:01:09]}  Rc7 {[%clk 0:01:47]} 24. Rfd1 {[%clk 0:01:01]}  Qf7 {[%clk 0:01:35]} 25. Bxc6 {[%clk 0:00:55]}  Bd8 {[%clk 0:01:34]} 26. Bf3 {[%clk 0:00:49]}  g5 {[%clk 0:01:34]} 27. c6 {[%clk 0:00:46]}  Qg6 {[%clk 0:01:28]} 28. d5 {[%clk 0:00:31]}  g4 {[%clk 0:01:23]} 29. Be2 {[%clk 0:00:28]}  f3 {[%clk 0:01:21]} 30. Bd3 {[%clk 0:00:27]}  Qh5 {[%clk 0:01:12]} 31. d6 {[%clk 0:00:23]}  Rcf7 {[%clk 0:01:11]} 32. c7 {[%clk 0:00:18]}  Bh4 {[%clk 0:01:05]} 33. g3 {[%clk 0:00:18]}  Bg5 {[%clk 0:00:46]} 34. Bf1 {[%clk 0:00:16]}  Qg6 {[%clk 0:00:28]} 35. Qd4 {[%clk 0:00:16]}  Bf6 {[%clk 0:00:26]} 36. Qd3 {[%clk 0:00:16]}  Qh5 {[%clk 0:00:26]} 37. Bxf6 {[%clk 0:00:15]}  Rxf6 {[%clk 0:00:26]} 38. d7 {[%clk 0:00:16]}  Bxd7 {[%clk 0:00:27]} 39. Qxd7 {[%clk 0:00:16]}  R6f7 {[%clk 0:00:17]} 40. c8=Q {[%clk 0:00:16]} 1-0


[Site "https://www.chess.com"]

[Event "Titled Tuesday Blitz October 31 Early 2023"]
[White "Zhigalko, Sergei"]
[Black "Slade, Theodore"]
[WhiteFideId "13502956"]
[BlackFideId "426547"]
[WhiteElo "2960"]
[BlackElo "2513"]
[Result "1-0"]
[Round "2"]
[TimeControl "180+1"]
[Date "2023.10.31"]
[WhiteClock "0:00:19"]
[BlackClock "0:00:00"]
[Board "97"]

1. e4 {[%clk 0:03:00]}  e5 {[%clk 0:03:00]} 2. Nf3 {[%clk 0:03:00]}  Nc6 {[%clk 0:03:00]} 3. Bc4 {[%clk 0:03:00]}  Bc5 {[%clk 0:03:00]} 4. b4 {[%clk 0:03:00]}  Bxb4 {[%clk 0:03:00]} 5. c3 {[%clk 0:03:00]}  Ba5 {[%clk 0:03:01]} 6. d4 {[%clk 0:03:00]}  d6 {[%clk 0:03:01]} 7. Qb3 {[%clk 0:02:59]}  Qd7 {[%clk 0:02:55]} 8. O-O {[%clk 0:02:58]}  Bb6 {[%clk 0:02:33]} 9. Nbd2 {[%clk 0:02:58]}  exd4 {[%clk 0:02:03]} 10. cxd4 {[%clk 0:02:53]}  Nxd4 {[%clk 0:02:02]} 11. Nxd4 {[%clk 0:02:54]}  Bxd4 {[%clk 0:02:02]} 12. Rb1 {[%clk 0:02:55]}  Nf6 {[%clk 0:01:58]} 13. Nf3 {[%clk 0:02:55]}  Bb6 {[%clk 0:01:49]} 14. e5 {[%clk 0:02:15]}  Ne4 {[%clk 0:01:44]} 15. exd6 {[%clk 0:02:08]}  O-O {[%clk 0:01:34]} 16. dxc7 {[%clk 0:01:34]}  Qxc7 {[%clk 0:01:24]} 17. Ba3 {[%clk 0:01:29]}  Bc5 {[%clk 0:01:18]} 18. Bd5 {[%clk 0:01:20]}  Bxa3 {[%clk 0:01:07]} 19. Bxe4 {[%clk 0:01:09]}  Bc5 {[%clk 0:00:59]} 20. Qc2 {[%clk 0:00:54]}  Bg4 {[%clk 0:00:47]} 21. Rxb7 {[%clk 0:00:48]}  Qc8 {[%clk 0:00:27]} 22. Bxh7+ {[%clk 0:00:23]}  Kh8 {[%clk 0:00:27]} 23. Be4 {[%clk 0:00:23]}  Bb6 {[%clk 0:00:13]} 24. Qa4 {[%clk 0:00:20]}  Qe6 {[%clk 0:00:05]} 25. Rxb6 {[%clk 0:00:16]}  Qxb6 {[%clk 0:00:03]} 26. Bxa8 {[%clk 0:00:16]}  Bxf3 {[%clk 0:00:02]} 27. Bxf3 {[%clk 0:00:15]}  Rd8 {[%clk 0:00:01]} 28. Qb3 {[%clk 0:00:15]}  Kg8 {[%clk 0:00:01]} 29. Qxb6 {[%clk 0:00:15]}  axb6 {[%clk 0:00:01]} 30. a4 {[%clk 0:00:15]}  Rc8 {[%clk 0:00:01]} 31. Be2 {[%clk 0:00:15]}  Rc3 {[%clk 0:00:01]} 32. Bb5 {[%clk 0:00:16]}  Rb3 {[%clk 0:00:02]} 33. g3 {[%clk 0:00:17]}  Rb4 {[%clk 0:00:02]} 34. Kg2 {[%clk 0:00:17]}  Rd4 {[%clk 0:00:03]} 35. h4 {[%clk 0:00:17]}  Rd6 {[%clk 0:00:04]} 36. Re1 {[%clk 0:00:18]}  g6 {[%clk 0:00:04]} 37. Rc1 {[%clk 0:00:18]}  Kg7 {[%clk 0:00:05]} 38. Rc6 {[%clk 0:00:18]}  Rxc6 {[%clk 0:00:00]} 39. Bxc6 {[%clk 0:00:19]} 1-0


[Site "https://www.chess.com"]

[Event "Titled Tuesday Blitz October 31 Early 2023"]
[White "HeroRubiksCube"]
[Black "Drygalov, Sergey"]
[BlackFideId "24171743"]
[WhiteElo "2507"]
[BlackElo "2954"]
[Result "0-1"]
[Round "2"]
[TimeControl "180+1"]
[Date "2023.10.31"]
[WhiteClock "0:01:32"]
[BlackClock "0:02:44"]
[Board "98"]

1. e4 {[%clk 0:03:00]}  c5 {[%clk 0:03:00]} 2. Nf3 {[%clk 0:02:59]}  d6 {[%clk 0:03:01]} 3. Bb5+ {[%clk 0:02:59]}  Nd7 {[%clk 0:03:00]} 4. c3 {[%clk 0:02:57]}  Nf6 {[%clk 0:03:00]} 5. Qe2 {[%clk 0:02:57]}  a6 {[%clk 0:03:00]} 6. Ba4 {[%clk 0:02:57]}  b5 {[%clk 0:03:00]} 7. Bc2 {[%clk 0:02:58]}  c4 {[%clk 0:03:00]} 8. O-O {[%clk 0:02:58]}  Bb7 {[%clk 0:03:00]} 9. a4 {[%clk 0:02:57]}  e6 {[%clk 0:02:59]} 10. axb5 {[%clk 0:02:57]}  axb5 {[%clk 0:03:00]} 11. Rxa8 {[%clk 0:02:58]}  Qxa8 {[%clk 0:03:00]} 12. d4 {[%clk 0:02:58]}  Bxe4 {[%clk 0:02:59]} 13. Na3 {[%clk 0:02:52]}  Bxc2 {[%clk 0:02:59]} 14. Qxc2 {[%clk 0:02:50]}  Qc6 {[%clk 0:02:58]} 15. b3 {[%clk 0:02:34]}  d5 {[%clk 0:02:57]} 16. bxc4 {[%clk 0:02:31]}  bxc4 {[%clk 0:02:57]} 17. Qe2 {[%clk 0:02:19]}  Be7 {[%clk 0:02:56]} 18. Nc2 {[%clk 0:02:20]}  O-O {[%clk 0:02:56]} 19. Bf4 {[%clk 0:02:19]}  Ne4 {[%clk 0:02:53]} 20. Qe3 {[%clk 0:02:14]}  Qa4 {[%clk 0:02:53]} 21. Nce1 {[%clk 0:02:04]}  Qa3 {[%clk 0:02:51]} 22. Ne5 {[%clk 0:02:03]}  Nxe5 {[%clk 0:02:50]} 23. Bxe5 {[%clk 0:02:04]}  Qxc3 {[%clk 0:02:50]} 24. Qf4 {[%clk 0:02:04]}  Nd2 {[%clk 0:02:49]} 25. Qg4 {[%clk 0:01:59]}  g6 {[%clk 0:02:47]} 26. h4 {[%clk 0:01:36]}  Nxf1 {[%clk 0:02:47]} 27. h5 {[%clk 0:01:32]}  Qxe1 {[%clk 0:02:44]} 0-1


[Site "https://www.chess.com"]

[Event "Titled Tuesday Blitz October 31 Early 2023"]
[White "PoXerStar"]
[Black "Hamitevici, Vladimir"]
[BlackFideId "13902393"]
[WhiteElo "2450"]
[BlackElo "2756"]
[Result "1/2-1/2"]
[Round "2"]
[TimeControl "180+1"]
[Date "2023.10.31"]
[WhiteClock "0:00:04"]
[BlackClock "0:00:08"]
[Board "101"]

1. d4 {[%clk 0:03:00]}  d6 {[%clk 0:03:00]} 2. Nc3 {[%clk 0:03:01]}  g6 {[%clk 0:02:59]} 3. e4 {[%clk 0:03:01]}  c6 {[%clk 0:02:59]} 4. f4 {[%clk 0:02:58]}  d5 {[%clk 0:02:58]} 5. e5 {[%clk 0:02:54]}  h5 {[%clk 0:02:58]} 6. Nf3 {[%clk 0:02:54]}  Bg4 {[%clk 0:02:57]} 7. Be2 {[%clk 0:02:54]}  e6 {[%clk 0:02:56]} 8. Be3 {[%clk 0:02:54]}  Nh6 {[%clk 0:02:55]} 9. O-O {[%clk 0:02:37]}  Nf5 {[%clk 0:02:54]} 10. Bf2 {[%clk 0:02:37]}  Be7 {[%clk 0:02:46]} 11. h3 {[%clk 0:02:35]}  Bxf3 {[%clk 0:02:46]} 12. Bxf3 {[%clk 0:02:35]}  h4 {[%clk 0:02:36]} 13. a4 {[%clk 0:02:31]}  a5 {[%clk 0:02:33]} 14. Ne2 {[%clk 0:02:22]}  Nd7 {[%clk 0:02:25]} 15. c4 {[%clk 0:02:15]}  dxc4 {[%clk 0:02:22]} 16. Nc3 {[%clk 0:02:15]}  Nb6 {[%clk 0:02:18]} 17. Ne4 {[%clk 0:02:10]}  Nd5 {[%clk 0:02:13]} 18. Qc1 {[%clk 0:02:05]}  Kf8 {[%clk 0:01:57]} 19. Re1 {[%clk 0:01:48]}  b5 {[%clk 0:01:51]} 20. b3 {[%clk 0:01:42]}  cxb3 {[%clk 0:01:49]} 21. Qxc6 {[%clk 0:01:41]}  b4 {[%clk 0:01:20]} 22. Nc5 {[%clk 0:01:33]}  Rc8 {[%clk 0:01:01]} 23. Nxe6+ {[%clk 0:01:32]}  fxe6 {[%clk 0:01:00]} 24. Qxe6 {[%clk 0:01:33]}  Nxf4 {[%clk 0:00:59]} 25. Qxb3 {[%clk 0:01:27]}  Rc3 {[%clk 0:00:59]} 26. Qd1 {[%clk 0:01:20]}  b3 {[%clk 0:00:49]} 27. d5 {[%clk 0:01:19]}  Bb4 {[%clk 0:00:43]} 28. e6 {[%clk 0:01:10]}  Rxf3 {[%clk 0:00:24]} 29. Qxf3 {[%clk 0:01:09]}  Bxe1 {[%clk 0:00:25]} 30. Rxe1 {[%clk 0:01:09]}  Nxd5 {[%clk 0:00:22]} 31. Qxb3 {[%clk 0:00:48]}  Nde7 {[%clk 0:00:18]} 32. Qc3 {[%clk 0:00:37]}  Kg8 {[%clk 0:00:17]} 33. Bc5 {[%clk 0:00:28]}  Qc8 {[%clk 0:00:13]} 34. Qe5 {[%clk 0:00:27]}  Kh7 {[%clk 0:00:06]} 35. Rf1 {[%clk 0:00:25]}  Rf8 {[%clk 0:00:05]} 36. Ba3 {[%clk 0:00:10]}  Qc6 {[%clk 0:00:05]} 37. Qxa5 {[%clk 0:00:09]}  Ra8 {[%clk 0:00:03]} 38. Qb4 {[%clk 0:00:08]}  Rxa4 {[%clk 0:00:02]} 39. Qb2 {[%clk 0:00:06]}  Qxe6 {[%clk 0:00:02]} 40. Bxe7 {[%clk 0:00:04]}  Re4 {[%clk 0:00:03]} 41. Bg5 {[%clk 0:00:04]}  Re2 {[%clk 0:00:03]} 42. Qb7+ {[%clk 0:00:04]}  Kg8 {[%clk 0:00:03]} 43. Qb8+ {[%clk 0:00:04]}  Qe8 {[%clk 0:00:03]} 44. Qb3+ {[%clk 0:00:04]}  Re6 {[%clk 0:00:04]} 45. Re1 {[%clk 0:00:03]}  Kf7 {[%clk 0:00:05]} 46. Rxe6 {[%clk 0:00:03]}  Qxe6 {[%clk 0:00:04]} 47. Qxe6+ {[%clk 0:00:03]}  Kxe6 {[%clk 0:00:05]} 48. Bf4 {[%clk 0:00:03]}  Kd5 {[%clk 0:00:06]} 49. Kf2 {[%clk 0:00:04]}  Ke4 {[%clk 0:00:06]} 50. Bh2 {[%clk 0:00:03]}  Kd3 {[%clk 0:00:07]} 51. Be5 {[%clk 0:00:03]}  Ke4 {[%clk 0:00:07]} 52. Bf6 {[%clk 0:00:03]}  Kf4 {[%clk 0:00:07]} 53. Bd8 {[%clk 0:00:03]}  g5 {[%clk 0:00:07]} 54. Bc7+ {[%clk 0:00:03]}  Ke4 {[%clk 0:00:08]} 55. Bd8 {[%clk 0:00:03]}  Kf4 {[%clk 0:00:08]} 56. Bc7+ {[%clk 0:00:03]}  Ke4 {[%clk 0:00:09]} 57. Bd8 {[%clk 0:00:04]}  Kf4 {[%clk 0:00:08]} 1/2-1/2


[Site "https://www.chess.com"]

[Event "Titled Tuesday Blitz October 31 Early 2023"]
[White "Matthes, Aaron"]
[Black "Rendle, Thomas E"]
[WhiteFideId "16227310"]
[BlackFideId "408760"]
[WhiteElo "2316"]
[BlackElo "2668"]
[Result "0-1"]
[Round "2"]
[TimeControl "180+1"]
[Date "2023.10.31"]
[WhiteClock "0:00:40"]
[BlackClock "0:00:13"]
[Board "102"]

1. Nf3 {[%clk 0:02:52]}  Nf6 {[%clk 0:02:56]} 2. g3 {[%clk 0:02:51]}  g6 {[%clk 0:02:56]} 3. Bg2 {[%clk 0:02:52]}  Bg7 {[%clk 0:02:57]} 4. O-O {[%clk 0:02:52]}  O-O {[%clk 0:02:57]} 5. d4 {[%clk 0:02:53]}  d6 {[%clk 0:02:50]} 6. b3 {[%clk 0:02:52]}  a5 {[%clk 0:02:47]} 7. a4 {[%clk 0:02:48]}  c6 {[%clk 0:02:47]} 8. Bb2 {[%clk 0:02:48]}  Bf5 {[%clk 0:02:42]} 9. c4 {[%clk 0:02:48]}  Na6 {[%clk 0:02:41]} 10. Nc3 {[%clk 0:02:47]}  Nb4 {[%clk 0:02:39]} 11. Nh4 {[%clk 0:02:45]}  Bc2 {[%clk 0:02:38]} 12. Qd2 {[%clk 0:02:45]}  Bxb3 {[%clk 0:02:37]} 13. Ba3 {[%clk 0:02:19]}  Bxc4 {[%clk 0:02:34]} 14. Rfc1 {[%clk 0:02:18]}  Ba6 {[%clk 0:02:23]} 15. Rab1 {[%clk 0:02:13]}  c5 {[%clk 0:02:08]} 16. e4 {[%clk 0:02:05]}  cxd4 {[%clk 0:01:58]} 17. Qxd4 {[%clk 0:02:05]}  Nfd5 {[%clk 0:01:53]} 18. Qd2 {[%clk 0:01:51]}  Nxc3 {[%clk 0:01:53]} 19. Rxc3 {[%clk 0:01:51]}  Bxc3 {[%clk 0:01:53]} 20. Qxc3 {[%clk 0:01:52]}  Rc8 {[%clk 0:01:50]} 21. Qe3 {[%clk 0:01:51]}  Nc2 {[%clk 0:01:47]} 22. Qh6 {[%clk 0:01:49]}  Nxa3 {[%clk 0:01:41]} 23. Nf3 {[%clk 0:01:47]}  f6 {[%clk 0:01:35]} 24. Re1 {[%clk 0:01:41]}  Nc2 {[%clk 0:01:32]} 25. Nh4 {[%clk 0:01:40]}  Qe8 {[%clk 0:01:11]} 26. Rd1 {[%clk 0:01:34]}  Qf7 {[%clk 0:01:03]} 27. Bh3 {[%clk 0:01:35]}  Rc5 {[%clk 0:00:54]} 28. Qd2 {[%clk 0:01:26]}  Nb4 {[%clk 0:00:50]} 29. Nf3 {[%clk 0:01:24]}  Kh8 {[%clk 0:00:49]} 30. Nd4 {[%clk 0:01:24]}  Re5 {[%clk 0:00:47]} 31. Qf4 {[%clk 0:01:20]}  Nc6 {[%clk 0:00:45]} 32. Nf3 {[%clk 0:01:18]}  Be2 {[%clk 0:00:43]} 33. Rb1 {[%clk 0:01:12]}  Bxf3 {[%clk 0:00:41]} 34. Qxf3 {[%clk 0:01:13]}  Nb4 {[%clk 0:00:36]} 35. Rc1 {[%clk 0:01:13]}  Rc5 {[%clk 0:00:36]} 36. Rd1 {[%clk 0:01:11]}  f5 {[%clk 0:00:35]} 37. exf5 {[%clk 0:01:10]}  gxf5 {[%clk 0:00:36]} 38. Qf4 {[%clk 0:01:09]}  Qg7 {[%clk 0:00:34]} 39. Bf1 {[%clk 0:01:07]}  Nc6 {[%clk 0:00:32]} 40. Re1 {[%clk 0:01:05]}  Ne5 {[%clk 0:00:32]} 41. Be2 {[%clk 0:01:04]}  Rc2 {[%clk 0:00:29]} 42. Bd1 {[%clk 0:01:03]}  Rb2 {[%clk 0:00:26]} 43. Qh4 {[%clk 0:01:01]}  f4 {[%clk 0:00:24]} 44. g4 {[%clk 0:00:53]}  f3 {[%clk 0:00:21]} 45. h3 {[%clk 0:00:49]}  Rb4 {[%clk 0:00:20]} 46. Bc2 {[%clk 0:00:48]}  Nxg4 {[%clk 0:00:19]} 47. Rxe7 {[%clk 0:00:40]}  Qa1+ {[%clk 0:00:13]} 0-1


[Site "https://www.chess.com"]